[Event "Slovakia Open Piestany-A 2022"]
[Site "Piestany"]
[Date "2022.07.13"]
[Round "3"]
[White "Hrbek, Stepan"]
[Black "Stastna, Martina"]
[Result "1-0"]
[ECO "D35"]
[WhiteElo "2272"]
[BlackElo "1912"]
[Annotator "ChessBase"]
[PlyCount "97"]
[EventDate "2022.07.12"]
[EventType "swiss"]
[EventCountry "SVK"]
[SourceTitle "playchess.com"]
[Source "ChessBase"]
[SourceQuality "1"]
[TimeControl "40/5400+30:1800+30"]

1. d4 {[%emt 0:00:03]} d5 {[%emt 0:00:09]} 2. c4 {[%emt 0:00:21]} e6 {[%emt 0:00:29]} 3. Nc3 {[%emt 0:00:50]} Nf6 {[%emt 0:01:03]} 4. cxd5 {[%emt 0:00:25]} exd5 {[%emt 0:00:46]} 5. Bg5 {[%emt 0:00:16]} c6 {[%emt 0:01:22]} 6. e3 {[%emt 0:00:09]} Bd6 {[%emt 0:00:59]} 7. Bd3 {[%emt 0:01:35]} Nbd7 {[%emt 0:01:53]} 8. Nf3 {[%emt 0:06:27]} O-O {[%emt 0:06:53]} 9. O-O {[%emt 0:00:26]} Re8 {[%emt 0:01:12]} 10. Bf4 {[%emt 0:13:56]} Bxf4 {[%emt 0:05:48]} 11. exf4 {[%emt 0:00:07]} Nf8 {[%emt 0:08:27]} 12. Qc2 {[%emt 0:01:26]} Qb6 {[%emt 0:03:04]} 13. f5 {[%emt 0:13:40]} Bd7 {[%emt 0:05:19]} 14. Rfe1 {[%emt 0:01:38]} Rac8 {[%emt 0:04:24]} 15. Qb3 {[%emt 0:04:44]} Qxb3 {[%emt 0:09:17]} 16. axb3 {[%emt 0:00:11]} Rxe1+ {[%emt 0:00:17]} 17. Nxe1 {[%emt 0:06:17]} Re8 {[%emt 0:05:30]} 18. Nf3 {[%emt 0:08:40]} a6 {[%emt 0:01:25]} 19. Ne5 {[%emt 0:03:04]} Bc8 {[%emt 0:10:28]} 20. b4 {[%emt 0:09:39]} N8d7 {[%emt 0:03:27]} 21. Nxd7 {[%emt 0:03:35]} Bxd7 {[%emt 0:02:46]} 22. f3 {[%emt 0:00:39]} Kf8 {[%emt 0:03:59]} 23. Kf2 {[%emt 0:00:37]} Ke7 {[%emt 0:00:39]} 24. g4 {[%emt 0:00:53]} Kd6 {[%emt 0:06:24]} 25. h4 {[%emt 0:00:34]} g6 {[%emt 0:00:53]} 26. fxg6 {[%emt 0:00:41]} hxg6 {[%emt 0:02:28]} 27. h5 {[%emt 0:02:39]} gxh5 {[%emt 0:02:07]} 28. g5 {[%emt 0:00:09]} Ng8 {[%emt 0:00:12]} 29. Rh1 {[%emt 0:00:24]} Ne7 {[%emt 0:01:03]} 30. Rxh5 {[%emt 0:00:24]} Bf5 {[%emt 0:00:44]} 31. Rh6+ {[%emt 0:04:08]} Kd7 {[%emt 0:00:58]} 32. Bf1 {[%emt 0:00:18]} Bg6 {[%emt 0:03:42]} 33. Bh3+ {[%emt 0:04:37]} Kc7 {[%emt 0:03:13]} 34. Ne2 {[%emt 0:03:34]} Rg8 {[%emt 0:04:38]} 35. Ng3 {[%emt 0:03:02]} Kb6 {[%emt 0:00:45]} 36. f4 {[%emt 0:04:51]} Bc2 {[%emt 0:00:54]} 37. Bf1 {[%emt 0:01:05]} Ng6 {[%emt 0:00:49]} 38. Nh5 {[%emt 0:02:33]} Bd1 {[%emt 0:00:20]} 39. Nf6 {[%emt 0:00:12]} Rh8 {[%emt 0:00:29]} 40. f5 {[%emt 0:00:59]} Rxh6 {[%emt 0:00:16]} 41. gxh6 {[%emt 0:30:05]} Nh8 {[%emt 0:30:26]} 42. Ke3 {[%emt 0:00:00]} Bc2 {[%emt 0:00:00]} 43. Kf4 {[%emt 0:00:00]} Kc7 {[%emt 0:00:00]} 44. Ke5 {[%emt 0:00:00]} Kd8 {[%emt 0:00:00]} 45. Ng8 {[%emt 0:00:00]} Ke8 {[%emt 0:00:00]} 46. Kf6 {[%emt 0:00:00]} Kf8 {[%emt 0:00:00]} 47. Ne7 {[%emt 0:00:00]} Ba4 {[%emt 0:00:00]} 48. h7 {[%emt 0:00:00]} Bc2 {[%emt 0:00:00]} 49. Be2 {[%emt 0:00:00]} 1-0

[Event "Slovakia Open Piestany-A 2022"]
[Site "Piestany"]
[Date "2022.07.13"]
[Round "3"]
[White "Zeman, Matyas"]
[Black "Saravanan Durga"]
[Result "1-0"]
[ECO "A07"]
[WhiteElo "2262"]
[BlackElo "1908"]
[Annotator "ChessBase"]
[PlyCount "134"]
[EventDate "2022.07.12"]
[EventType "swiss"]
[EventCountry "SVK"]
[SourceTitle "playchess.com"]
[Source "ChessBase"]
[SourceQuality "1"]
[TimeControl "40/5400+30:1800+30"]

1. Nf3 {[%emt 0:00:16]} d5 {[%emt 0:00:05]} 2. g3 {[%emt 0:00:11]} Nf6 {[%emt 0:01:18]} 3. Bg2 {[%emt 0:00:07]} d4 {[%emt 0:05:11]} 4. c3 {[%emt 0:07:05]} dxc3 {[%emt 0:06:38]} 5. Nxc3 {[%emt 0:00:32]} e6 {[%emt 0:02:35]} 6. O-O {[%emt 0:02:08]} Be7 {[%emt 0:02:03]} 7. d4 {[%emt 0:03:39]} O-O {[%emt 0:07:54]} 8. Qb3 {[%emt 0:04:09]} Nc6 {[%emt 0:19:37]} 9. Rd1 {[%emt 0:00:33]} Bb4 {[%emt 0:13:28]} 10. Ne5 {[%emt 0:13:54]} a5 {[%emt 0:13:38]} 11. Nxc6 {[%emt 0:03:50]} bxc6 {[%emt 0:00:03]} 12. a3 {[%emt 0:03:14]} Bxc3 {[%emt 0:01:07]} 13. Qxc3 {[%emt 0:00:05]} Nd5 {[%emt 0:03:30]} 14. Qxc6 {[%emt 0:00:41]} Bd7 {[%emt 0:00:36]} 15. Qc2 {[%emt 0:01:27]} a4 {[%emt 0:01:26]} 16. e4 {[%emt 0:00:15]} Nb6 {[%emt 0:00:27]} 17. Bf4 {[%emt 0:00:12]} Rc8 {[%emt 0:01:59]} 18. Rac1 {[%emt 0:00:11]} Qf6 {[%emt 0:06:17]} 19. Qc5 {[%emt 0:01:51]} Na8 {[%emt 0:01:50]} 20. Be5 {[%emt 0:05:46]} Qd8 {[%emt 0:01:52]} 21. d5 {[%emt 0:00:21]} Qe8 {[%emt 0:00:51]} 22. Bc3 {[%emt 0:01:44]} f6 {[%emt 0:01:55]} 23. Bb4 {[%emt 0:01:33]} Rf7 {[%emt 0:00:05]} 24. dxe6 {[%emt 0:02:15]} Bxe6 {[%emt 0:00:05]} 25. e5 {[%emt 0:00:07]} fxe5 {[%emt 0:02:34]} 26. Re1 {[%emt 0:00:05]} Nb6 {[%emt 0:02:47]} 27. Qxe5 {[%emt 0:00:04]} Bd7 {[%emt 0:01:08]} 28. Rxc7 {[%emt 0:01:16]} Qxe5 {[%emt 0:01:03]} 29. Rxc8+ {[%emt 0:00:04]} Bxc8 {[%emt 0:00:27]} 30. Rxe5 {[%emt 0:00:04]} Rc7 {[%emt 0:01:30]} 31. h4 {[%emt 0:02:50]} Kf7 {[%emt 0:00:11]} 32. Be4 {[%emt 0:00:58]} Nc4 {[%emt 0:01:22]} 33. Bd5+ {[%emt 0:01:05]} Kf6 {[%emt 0:00:04]} 34. Re2 {[%emt 0:00:23]} Bf5 {[%emt 0:00:51]} 35. Bc3+ {[%emt 0:00:23]} Kg6 {[%emt 0:00:20]} 36. g4 {[%emt 0:00:51]} Bxg4 {[%emt 0:00:33]} 37. Re4 {[%emt 0:00:06]} Bf5 {[%emt 0:01:00]} 38. Rxc4 {[%emt 0:00:06]} Rd7 {[%emt 0:00:37]} 39. Be4 {[%emt 0:00:19]} Bxe4 {[%emt 0:00:20]} 40. Rxe4 {[%emt 0:00:06]} Ra7 {[%emt 0:00:05]} 41. Rg4+ {[%emt 0:30:06]} Kh6 {[%emt 0:30:18]} 42. Kg2 {[%emt 0:00:52]} g6 {[%emt 0:00:09]} 43. Kg3 {[%emt 0:00:05]} Ra6 {[%emt 0:00:28]} 44. h5 {[%emt 0:00:09]} Ra7 {[%emt 0:00:35]} 45. hxg6 {[%emt 0:00:33]} hxg6 {[%emt 0:00:01]} 46. f4 {[%emt 0:00:01]} g5 {[%emt 0:00:55]} 47. Rxg5 {[%emt 0:00:05]} Rd7 {[%emt 0:00:24]} 48. Kg4 {[%emt 0:00:12]} Rd3 {[%emt 0:00:55]} 49. f5 {[%emt 0:00:34]} Kh7 {[%emt 0:00:44]} 50. Rg7+ {[%emt 0:00:21]} Kh6 {[%emt 0:00:10]} 51. Rg8 {[%emt 0:00:13]} Rd7 {[%emt 0:00:35]} 52. Rh8+ {[%emt 0:00:07]} Rh7 {[%emt 0:00:06]} 53. Rxh7+ {[%emt 0:00:15]} Kxh7 {[%emt 0:00:03]} 54. b4 {[%emt 0:00:09]} axb3 {[%emt 0:00:26]} 55. a4 {[%emt 0:00:05]} Kg8 {[%emt 0:00:18]} 56. a5 {[%emt 0:00:09]} Kf7 {[%emt 0:00:03]} 57. a6 {[%emt 0:00:04]} Ke7 {[%emt 0:00:11]} 58. a7 {[%emt 0:00:06]} Kd6 {[%emt 0:00:13]} 59. a8=Q {[%emt 0:00:10]} Kc5 {[%emt 0:00:05]} 60. Qa4 {[%emt 0:00:46]} Kd6 {[%emt 0:00:14]} 61. Qxb3 {[%emt 0:00:18]} Kc6 {[%emt 0:00:02]} 62. f6 {[%emt 0:00:09]} Kd7 {[%emt 0:00:09]} 63. f7 {[%emt 0:00:07]} Ke7 {[%emt 0:00:03]} 64. Bb4+ {[%emt 0:00:06]} Kd7 {[%emt 0:00:10]} 65. f8=R {[%emt 0:00:11]} Kc7 {[%emt 0:00:04]} 66. Ba5+ {[%emt 0:00:09]} Kd7 {[%emt 0:00:04]} 67. Qd5+ {[%emt 0:00:07]} Ke7 {[%emt 0:00:04]} 1-0

[Event "Slovakia Open Piestany-A 2022"]
[Site "Piestany"]
[Date "2022.07.13"]
[Round "3"]
[White "Librelato, Kathie Goulart"]
[Black "Ondrejat, Miroslav"]
[Result "1-0"]
[ECO "B52"]
[WhiteElo "2255"]
[BlackElo "1903"]
[Annotator "ChessBase"]
[PlyCount "59"]
[EventDate "2022.07.12"]
[EventType "swiss"]
[EventCountry "SVK"]
[SourceTitle "playchess.com"]
[Source "ChessBase"]
[SourceQuality "1"]
[TimeControl "40/5400+30:1800+30"]

1. e4 {[%emt 0:00:10]} c5 {[%emt 0:00:07]} 2. Nf3 {[%emt 0:00:35]} d6 {[%emt 0:00:04]} 3. Bb5+ {[%emt 0:02:35]} Bd7 {[%emt 0:02:51]} 4. Bxd7+ {[%emt 0:00:08]} Qxd7 {[%emt 0:00:14]} 5. O-O {[%emt 0:00:17]} Nc6 {[%emt 0:00:25]} 6. c3 {[%emt 0:00:17]} d5 {[%emt 0:06:37]} 7. e5 {[%emt 0:03:42]} e6 {[%emt 0:04:15]} 8. d4 {[%emt 0:01:30]} Nge7 {[%emt 0:04:38]} 9. dxc5 {[%emt 0:34:35]} Ng6 {[%emt 0:00:28]} 10. Be3 {[%emt 0:01:18]} Ngxe5 {[%emt 0:04:48]} 11. Nxe5 {[%emt 0:13:14]} Nxe5 {[%emt 0:01:36]} 12. Nd2 {[%emt 0:00:10]} Nc6 {[%emt 0:21:41]} 13. Qg4 {[%emt 0:12:50]} f5 {[%emt 0:21:24]} 14. Qe2 {[%emt 0:01:27]} e5 {[%emt 0:07:31]} 15. Rad1 {[%emt 0:01:54]} Qf7 {[%emt 0:04:03]} 16. b4 {[%emt 0:08:55]} a6 {[%emt 0:04:56]} 17. Nf3 {[%emt 0:01:37]} Be7 {[%emt 0:03:08]} 18. Bc1 {[%emt 0:09:41]} Bf6 {[%emt 0:02:15]} 19. Nxe5 {[%emt 0:01:16]} Bxe5 {[%emt 0:01:56]} 20. f4 {[%emt 0:00:08]} O-O {[%emt 0:00:44]} 21. fxe5 {[%emt 0:00:05]} Qe6 {[%emt 0:00:20]} 22. Bf4 {[%emt 0:00:24]} h6 {[%emt 0:00:45]} 23. h4 {[%emt 0:00:37]} Rad8 {[%emt 0:00:24]} 24. Rfe1 {[%emt 0:00:36]} d4 {[%emt 0:00:49]} 25. Qc2 {[%emt 0:02:51]} dxc3 {[%emt 0:01:30]} 26. Qxc3 {[%emt 0:00:19]} Qxa2 {[%emt 0:00:36]} 27. Rd6 {[%emt 0:00:23]} Qf7 {[%emt 0:02:51]} 28. e6 {[%emt 0:00:26]} Qe7 {[%emt 0:00:23]} 29. Qg3 {[%emt 0:00:47]} Qf6 {[%emt 0:00:59]} 30. e7 {[%emt 0:00:35]} 1-0

[Event "Slovakia Open Piestany-A 2022"]
[Site "Piestany"]
[Date "2022.07.13"]
[Round "3"]
[White "Domalchuk-Jonasson, Aleksandr"]
[Black "Vaculik, Martin"]
[Result "1-0"]
[ECO "D22"]
[WhiteElo "2244"]
[BlackElo "2284"]
[Annotator "ChessBase"]
[PlyCount "47"]
[EventDate "2022.07.12"]
[EventType "swiss"]
[EventCountry "SVK"]
[SourceTitle "playchess.com"]
[Source "ChessBase"]
[SourceQuality "1"]
[TimeControl "40/5400+30:1800+30"]

1. d4 {[%emt 0:00:06]} d5 {[%emt 0:00:13]} 2. c4 {[%emt 0:00:36]} dxc4 {[%emt 0:00:04]} 3. Nf3 {[%emt 0:00:24]} a6 {[%emt 0:01:42]} 4. e3 {[%emt 0:03:30]} b5 {[%emt 0:00:05]} 5. a4 {[%emt 0:02:19]} Bb7 {[%emt 0:01:05]} 6. b3 {[%emt 0:04:39]} e6 {[%emt 0:00:20]} 7. bxc4 {[%emt 0:02:23]} bxc4 {[%emt 0:00:07]} 8. Bxc4 {[%emt 0:03:38]} c5 {[%emt 0:00:05]} 9. O-O {[%emt 0:08:41]} cxd4 {[%emt 0:03:56]} 10. Nxd4 {[%emt 0:06:10]} Nf6 {[%emt 0:03:13]} 11. Qe2 {[%emt 0:02:42]} Bd6 {[%emt 0:12:59]} 12. Rd1 {[%emt 0:05:47]} Qe7 {[%emt 0:00:46]} 13. Nd2 {[%emt 0:07:55]} Nbd7 {[%emt 0:06:07]} 14. N2b3 {[%emt 0:05:21]} Ne5 {[%emt 0:07:18]} 15. Na5 {[%emt 0:04:11]} Nxc4 {[%emt 0:01:27]} 16. Nxb7 {[%emt 0:02:57]} Qxb7 {[%emt 0:00:42]} 17. Qxc4 {[%emt 0:00:04]} Rc8 {[%emt 0:03:47]} 18. Rb1 {[%emt 0:01:37]} Rxc4 {[%emt 0:43:41]} 19. Rxb7 {[%emt 0:02:52]} O-O {[%emt 0:05:14]} 20. Rb6 {[%emt 0:00:30]} Bc5 {[%emt 0:00:30]} 21. Rc6 {[%emt 0:18:18]} Ne4 {[%emt 0:00:17]} 22. Ba3 {[%emt 0:04:23]} Nc3 {[%emt 0:03:15]} 23. Ra1 {[%emt 0:03:10]} Nxa4 {[%emt 0:00:56]} 24. Nb3 {[%emt 0:01:59]} 1-0

[Event "Slovakia Open Piestany-A 2022"]
[Site "Piestany"]
[Date "2022.07.13"]
[Round "3"]
[White "Kratochvil, Vit"]
[Black "Simunek, Jakub Simon"]
[Result "1-0"]
[ECO "C00"]
[WhiteElo "2237"]
[BlackElo "1887"]
[Annotator "ChessBase"]
[PlyCount "77"]
[EventDate "2022.07.12"]
[EventType "swiss"]
[EventCountry "SVK"]
[SourceTitle "playchess.com"]
[Source "ChessBase"]
[SourceQuality "1"]
[TimeControl "40/5400+30:1800+30"]

1. e4 {[%emt 0:00:06]} e6 {[%emt 0:00:10]} 2. d3 {[%emt 0:00:54]} d5 {[%emt 0:00:16]} 3. Nd2 {[%emt 0:00:09]} c5 {[%emt 0:00:28]} 4. Ngf3 {[%emt 0:02:37]} Nc6 {[%emt 0:00:19]} 5. g3 {[%emt 0:01:24]} Nf6 {[%emt 0:00:19]} 6. Bg2 {[%emt 0:00:19]} Be7 {[%emt 0:00:18]} 7. O-O {[%emt 0:01:00]} O-O {[%emt 0:00:17]} 8. e5 {[%emt 0:02:47]} Nd7 {[%emt 0:00:12]} 9. Re1 {[%emt 0:00:24]} Qc7 {[%emt 0:00:35]} 10. Qe2 {[%emt 0:00:41]} b5 {[%emt 0:03:06]} 11. h4 {[%emt 0:10:02]} a5 {[%emt 0:01:04]} 12. Nf1 {[%emt 0:03:52]} Nd4 {[%emt 0:02:36]} 13. Nxd4 {[%emt 0:03:21]} cxd4 {[%emt 0:00:30]} 14. Bf4 {[%emt 0:07:53]} Bb7 {[%emt 0:00:37]} 15. Qg4 {[%emt 0:18:51]} Rfc8 {[%emt 0:05:11]} 16. Re2 {[%emt 0:01:26]} Bf8 {[%emt 0:03:24]} 17. Nh2 {[%emt 0:03:42]} Qb6 {[%emt 0:09:28]} 18. Nf3 {[%emt 0:05:55]} Rc7 {[%emt 0:04:17]} 19. Bg5 {[%emt 0:07:57]} Rac8 {[%emt 0:08:12]} 20. Rc1 {[%emt 0:12:47]} b4 {[%emt 0:04:59]} 21. Qxd4 {[%emt 0:10:27]} Bc5 {[%emt 0:01:29]} 22. Qg4 {[%emt 0:00:19]} Ba6 {[%emt 0:04:14]} 23. Rd2 {[%emt 0:02:25]} Bxd3 {[%emt 0:11:18]} 24. Rxd3 {[%emt 0:00:48]} Bxf2+ {[%emt 0:00:12]} 25. Kh2 {[%emt 0:01:29]} Rc4 {[%emt 0:06:09]} 26. Qh3 {[%emt 0:01:10]} h6 {[%emt 0:08:36]} 27. Bf4 {[%emt 0:00:27]} Rxf4 {[%emt 0:00:27]} 28. gxf4 {[%emt 0:00:06]} Nc5 {[%emt 0:00:03]} 29. Ne1 {[%emt 0:01:01]} Nxd3 {[%emt 0:06:15]} 30. Nxd3 {[%emt 0:00:16]} Be3 {[%emt 0:00:40]} 31. Re1 {[%emt 0:00:39]} Bd2 {[%emt 0:02:05]} 32. Re2 {[%emt 0:00:36]} Rxc2 {[%emt 0:00:09]} 33. f5 {[%emt 0:00:30]} Qd4 {[%emt 0:03:02]} 34. Qg3 {[%emt 0:00:29]} exf5 {[%emt 0:00:54]} 35. e6 {[%emt 0:00:27]} fxe6 {[%emt 0:12:59]} 36. Rxe6 {[%emt 0:00:02]} Rc4 {[%emt 0:01:04]} 37. Re2 {[%emt 0:01:03]} f4 {[%emt 0:00:59]} 38. Qf3 {[%emt 0:00:23]} Kh8 {[%emt 0:01:52]} 39. Rxd2 {[%emt 0:00:13]} 1-0

[Event "Slovakia Open Piestany-A 2022"]
[Site "Piestany"]
[Date "2022.07.13"]
[Round "3"]
[White "Zeleny, Tomas"]
[Black "Palchuk, Andrii"]
[Result "0-1"]
[ECO "B11"]
[WhiteElo "2136"]
[BlackElo "2248"]
[Annotator "ChessBase"]
[PlyCount "46"]
[EventDate "2022.07.12"]
[EventType "swiss"]
[EventCountry "SVK"]
[SourceTitle "playchess.com"]
[Source "ChessBase"]
[SourceQuality "1"]
[TimeControl "40/5400+30:1800+30"]

1. e4 {[%emt 0:00:08]} c6 {[%emt 0:00:14]} 2. Nc3 {[%emt 0:00:32]} d5 {[%emt 0:00:04]} 3. Nf3 {[%emt 0:02:10]} Bg4 {[%emt 0:00:55]} 4. h3 {[%emt 0:00:07]} Bxf3 {[%emt 0:00:22]} 5. Qxf3 {[%emt 0:00:09]} e6 {[%emt 0:00:20]} 6. Qg3 {[%emt 0:01:12]} Nf6 {[%emt 0:10:14]} 7. d3 {[%emt 0:00:05]} Nbd7 {[%emt 0:03:16]} 8. Be2 {[%emt 0:00:28]} Bb4 {[%emt 0:06:04]} 9. O-O {[%emt 0:08:02]} Bxc3 {[%emt 0:03:52]} 10. bxc3 {[%emt 0:00:09]} dxe4 {[%emt 0:00:03]} 11. Ba3 {[%emt 0:11:49]} Qa5 {[%emt 0:14:57]} 12. Bb4 {[%emt 0:12:59]} Qe5 {[%emt 0:11:46]} 13. Qxg7 {[%emt 0:08:29]} Rg8 {[%emt 0:00:32]} 14. Qh6 {[%emt 0:00:12]} exd3 {[%emt 0:17:08]} 15. Bxd3 {[%emt 0:14:46]} c5 {[%emt 0:00:37]} 16. Ba3 {[%emt 0:01:17]} Qxc3 {[%emt 0:06:25]} 17. Qc1 {[%emt 0:06:09]} c4 {[%emt 0:01:27]} 18. Bb2 {[%emt 0:05:07]} Qb4 {[%emt 0:00:11]} 19. Be2 {[%emt 0:00:46]} c3 {[%emt 0:00:11]} 20. Ba3 {[%emt 0:01:58]} Qe4 {[%emt 0:00:05]} 21. Bg4 {[%emt 0:05:53]} h5 {[%emt 0:00:37]} 22. Qd1 {[%emt 0:00:05]} hxg4 {[%emt 0:04:36]} 23. Qd6 {[%emt 0:01:31]} O-O-O {[%emt 0:00:19]} 0-1

[Event "Slovakia Open Piestany-A 2022"]
[Site "Piestany"]
[Date "2022.07.13"]
[Round "3"]
[White "Chval, Zdenek"]
[Black "Havelka, Josef"]
[Result "1-0"]
[ECO "B88"]
[WhiteElo "2063"]
[BlackElo "2396"]
[Annotator "ChessBase"]
[PlyCount "63"]
[EventDate "2022.07.12"]
[EventType "swiss"]
[EventCountry "SVK"]
[SourceTitle "playchess.com"]
[Source "ChessBase"]
[SourceQuality "1"]
[TimeControl "40/5400+30:1800+30"]

1. e4 {[%emt 0:00:05]} c5 {[%emt 0:00:27]} 2. Nf3 {[%emt 0:00:05]} Nc6 {[%emt 0:00:21]} 3. d4 {[%emt 0:00:05]} cxd4 {[%emt 0:00:05]} 4. Nxd4 {[%emt 0:00:03]} Nf6 {[%emt 0:00:12]} 5. Nc3 {[%emt 0:00:04]} d6 {[%emt 0:00:10]} 6. Bc4 {[%emt 0:04:38]} e6 {[%emt 0:00:29]} 7. O-O {[%emt 0:01:10]} Be7 {[%emt 0:04:26]} 8. Be3 {[%emt 0:03:03]} O-O {[%emt 0:07:26]} 9. Kh1 {[%emt 0:04:30]} Bd7 {[%emt 0:14:37]} 10. f4 {[%emt 0:07:09]} Nxd4 {[%emt 0:03:35]} 11. Bxd4 {[%emt 0:21:13]} Bc6 {[%emt 0:03:38]} 12. Qe2 {[%emt 0:03:10]} d5 {[%emt 0:27:27]} 13. exd5 {[%emt 0:00:09]} exd5 {[%emt 0:00:15]} 14. Rad1 {[%emt 0:09:39]} Re8 {[%emt 0:09:58]} 15. Qf2 {[%emt 0:03:37]} dxc4 {[%emt 0:09:03]} 16. Bxf6 {[%emt 0:00:22]} Bxf6 {[%emt 0:00:05]} 17. Rxd8 {[%emt 0:00:07]} Raxd8 {[%emt 0:00:04]} 18. Re1 {[%emt 0:07:46]} Rxe1+ {[%emt 0:04:04]} 19. Qxe1 {[%emt 0:00:02]} Bd4 {[%emt 0:03:21]} 20. h3 {[%emt 0:07:27]} h5 {[%emt 0:04:55]} 21. Qe2 {[%emt 0:04:52]} h4 {[%emt 0:01:50]} 22. Qxc4 {[%emt 0:03:33]} Be3 {[%emt 0:02:03]} 23. Ne2 {[%emt 0:06:31]} Rd2 {[%emt 0:01:11]} 24. b4 {[%emt 0:02:06]} g6 {[%emt 0:00:54]} 25. b5 {[%emt 0:01:40]} Bd5 {[%emt 0:00:46]} 26. Qc8+ {[%emt 0:01:07]} Kh7 {[%emt 0:00:05]} 27. Qg4 {[%emt 0:00:40]} Kg7 {[%emt 0:01:18]} 28. f5 {[%emt 0:00:59]} Rxc2 {[%emt 0:01:04]} 29. fxg6 {[%emt 0:01:38]} f5 {[%emt 0:00:39]} 30. Qh5 {[%emt 0:04:45]} Rd2 {[%emt 0:00:12]} 31. Qh7+ {[%emt 0:01:19]} Kf6 {[%emt 0:00:05]} 32. Qxh4+ {[%emt 0:00:13]} 1-0

[Event "Slovakia Open Piestany-A 2022"]
[Site "Piestany"]
[Date "2022.07.13"]
[Round "3"]
[White "Lang, Simon"]
[Black "Neuman, Petr"]
[Result "0-1"]
[ECO "B60"]
[WhiteElo "1942"]
[BlackElo "2378"]
[Annotator "ChessBase"]
[PlyCount "112"]
[EventDate "2022.07.12"]
[EventType "swiss"]
[EventCountry "SVK"]
[SourceTitle "playchess.com"]
[Source "ChessBase"]
[SourceQuality "1"]
[TimeControl "40/5400+30:1800+30"]

1. e4 {[%emt 0:00:04]} c5 {[%emt 0:00:00]} 2. Nf3 {[%emt 0:00:30]} d6 {[%emt 0:00:00]} 3. d4 {[%emt 0:00:56]} cxd4 {[%emt 0:00:00]} 4. Nxd4 {[%emt 0:00:26]} Nf6 {[%emt 0:00:00]} 5. Nc3 {[%emt 0:00:53]} Nc6 {[%emt 0:00:00]} 6. Bg5 {[%emt 0:00:48]} Bd7 {[%emt 0:00:00]} 7. f4 {[%emt 0:01:20]} h6 {[%emt 0:02:57]} 8. Bh4 {[%emt 0:03:51]} g5 {[%emt 0:14:16]} 9. fxg5 {[%emt 0:02:54]} hxg5 {[%emt 0:00:18]} 10. Bxg5 {[%emt 0:00:33]} Bg7 {[%emt 0:00:11]} 11. Nf5 {[%emt 0:06:34]} Bxf5 {[%emt 0:03:31]} 12. exf5 {[%emt 0:00:17]} Qa5 {[%emt 0:06:47]} 13. Qf3 {[%emt 0:05:18]} Nd4 {[%emt 0:18:44]} 14. Qxb7 {[%emt 0:15:12]} O-O {[%emt 0:00:32]} 15. Bxf6 {[%emt 0:01:57]} Bxf6 {[%emt 0:01:00]} 16. Qe4 {[%emt 0:05:18]} Nxf5 {[%emt 0:05:21]} 17. Bd3 {[%emt 0:07:33]} Bxc3+ {[%emt 0:03:27]} 18. bxc3 {[%emt 0:00:21]} Qxc3+ {[%emt 0:00:06]} 19. Kf2 {[%emt 0:00:47]} Qc5+ {[%emt 0:00:27]} 20. Ke1 {[%emt 0:01:21]} e6 {[%emt 0:00:27]} 21. Rf1 {[%emt 0:06:53]} Rab8 {[%emt 0:02:14]} 22. Rf4 {[%emt 0:09:12]} Rfc8 {[%emt 0:02:42]} 23. g4 {[%emt 0:04:04]} d5 {[%emt 0:17:16]} 24. Qe5 {[%emt 0:02:44]} Qg1+ {[%emt 0:06:12]} 25. Kd2 {[%emt 0:01:34]} Qxh2+ {[%emt 0:00:20]} 26. Kd1 {[%emt 0:00:00]} Ng7 {[%emt 0:04:39]} 27. g5 {[%emt 0:01:39]} Rb4 {[%emt 0:03:57]} 28. Re4 {[%emt 0:02:38]} Qxe5 {[%emt 0:00:41]} 29. Rxe5 {[%emt 0:00:06]} Rcb8 {[%emt 0:00:35]} 30. Kd2 {[%emt 0:01:34]} Rh4 {[%emt 0:02:19]} 31. Rf1 {[%emt 0:01:59]} Rb6 {[%emt 0:00:13]} 32. g6 {[%emt 0:00:47]} f5 {[%emt 0:00:22]} 33. Rf3 {[%emt 0:05:16]} Kf8 {[%emt 0:01:30]} 34. Be2 {[%emt 0:01:20]} Ke7 {[%emt 0:01:49]} 35. Ra3 {[%emt 0:00:21]} Rb7 {[%emt 0:00:24]} 36. Ra6 {[%emt 0:00:32]} Rhb4 {[%emt 0:02:03]} 37. Ke3 {[%emt 0:03:59]} Rc7 {[%emt 0:01:32]} 38. Bd3 {[%emt 0:00:41]} Rb6 {[%emt 0:00:13]} 39. Rxb6 {[%emt 0:00:52]} axb6 {[%emt 0:00:02]} 40. a4 {[%emt 0:00:15]} Kf6 {[%emt 0:01:36]} 41. Kd4 {[%emt 0:31:44]} f4 {[%emt 0:31:20]} 42. c3 {[%emt 0:03:03]} Rc8 {[%emt 0:00:00]} 43. Re1 {[%emt 0:00:00]} Rd8 {[%emt 0:00:00]} 44. Bc2 {[%emt 0:00:00]} e5+ {[%emt 0:00:00]} 45. Kd3 {[%emt 0:00:00]} e4+ {[%emt 0:00:00]} 46. Ke2 {[%emt 0:00:00]} Nf5 {[%emt 0:00:00]} 47. Kf2 {[%emt 0:00:00]} Kxg6 {[%emt 0:00:00]} 48. Rg1+ {[%emt 0:00:00]} Kf6 {[%emt 0:00:00]} 49. Rg4 {[%emt 0:00:00]} Ke5 {[%emt 0:00:00]} 50. Rg6 {[%emt 0:00:00]} Rd6 {[%emt 0:00:00]} 51. Rg5 {[%emt 0:00:00]} Rc6 {[%emt 0:00:00]} 52. Bd1 {[%emt 0:00:00]} f3 {[%emt 0:00:00]} 53. Rg8 {[%emt 0:00:00]} Rxc3 {[%emt 0:00:00]} 54. Rb8 {[%emt 0:00:00]} Rd3 {[%emt 0:00:00]} 55. Ke1 {[%emt 0:00:00]} f2+ {[%emt 0:00:00]} 56. Ke2 {[%emt 0:00:00]} Rf3 {[%emt 0:00:00]} 0-1

[Event "Slovakia Open Piestany-A 2022"]
[Site "Piestany"]
[Date "2022.07.13"]
[Round "3"]
[White "Hlavac, Rudolf"]
[Black "Mostbauer, Florian"]
[Result "0-1"]
[ECO "B15"]
[WhiteElo "1931"]
[BlackElo "2303"]
[Annotator "ChessBase"]
[PlyCount "60"]
[EventDate "2022.07.12"]
[EventType "swiss"]
[EventCountry "SVK"]
[SourceTitle "playchess.com"]
[Source "ChessBase"]
[SourceQuality "1"]
[TimeControl "40/5400+30:1800+30"]

1. e4 {[%emt 0:00:09]} c6 {[%emt 0:00:12]} 2. d4 {[%emt 0:00:18]} d5 {[%emt 0:00:10]} 3. Nc3 {[%emt 0:00:29]} dxe4 {[%emt 0:00:10]} 4. Nxe4 {[%emt 0:00:23]} Nf6 {[%emt 0:00:10]} 5. Nxf6+ {[%emt 0:01:39]} exf6 {[%emt 0:00:10]} 6. c3 {[%emt 0:02:21]} Bd6 {[%emt 0:00:11]} 7. Bd3 {[%emt 0:00:16]} O-O {[%emt 0:00:12]} 8. Qc2 {[%emt 0:00:36]} Re8+ {[%emt 0:00:10]} 9. Ne2 {[%emt 0:00:12]} h5 {[%emt 0:00:26]} 10. Be3 {[%emt 0:06:34]} Nd7 {[%emt 0:00:12]} 11. O-O-O {[%emt 0:00:43]} b5 {[%emt 0:00:22]} 12. Nf4 {[%emt 0:01:23]} Bxf4 {[%emt 0:04:40]} 13. Bxf4 {[%emt 0:00:16]} Nb6 {[%emt 0:00:20]} 14. h4 {[%emt 0:02:05]} a5 {[%emt 0:10:52]} 15. Rde1 {[%emt 0:03:42]} Be6 {[%emt 0:03:15]} 16. f3 {[%emt 0:01:50]} Qd5 {[%emt 0:11:54]} 17. Be4 {[%emt 0:02:12]} Qd7 {[%emt 0:00:24]} 18. Kb1 {[%emt 0:05:08]} a4 {[%emt 0:06:35]} 19. a3 {[%emt 0:14:57]} Re7 {[%emt 0:19:18]} 20. Qd1 {[%emt 0:05:18]} Rae8 {[%emt 0:04:44]} 21. Rhg1 {[%emt 0:01:17]} Bf5 {[%emt 0:02:04]} 22. Bd2 {[%emt 0:16:28]} Bxe4+ {[%emt 0:04:20]} 23. fxe4 {[%emt 0:00:32]} Nc4 {[%emt 0:02:02]} 24. Bc1 {[%emt 0:00:31]} Rxe4 {[%emt 0:01:38]} 25. Rxe4 {[%emt 0:00:36]} Rxe4 {[%emt 0:00:52]} 26. Qxh5 {[%emt 0:00:39]} Qe6 {[%emt 0:01:59]} 27. Rd1 {[%emt 0:04:28]} Re2 {[%emt 0:04:01]} 28. d5 {[%emt 0:02:03]} Qe4+ {[%emt 0:01:22]} 29. Ka1 {[%emt 0:01:52]} Qc2 {[%emt 0:08:29]} 30. Rg1 {[%emt 0:04:25]} Nxa3 {[%emt 0:01:32]} 0-1